fUST/lending_fUST_20240227
["ID","MTS","AMOUNT","RATE_DAILY","PERIOD"]
[315409859,1709016640354,-500.37739963,0.00019178,2]
[315409860,1709016640363,-500.0,0.00019178,2]
[315409861,1709016640372,-500.38226634,0.00019178,2]
[315409863,1709016640382,-500.0,0.00019178,2]
[315409864,1709016640391,-500.0,0.00019178,2]
[315409865,1709016640400,-500.0,0.00019178,2]
[315409866,1709016640410,-501.30340957,0.00019178,2]
[315409867,1709016640419,-305.83772746,0.00019178,2]
[315409868,1709016640431,-194.16227254,0.00019178,2]
[315409869,1709016640440,-371.74243159,0.00019178,2]
[315409870,1709016640452,-128.25756841,0.00019178,2]
[315409871,1709016640462,-500.0,0.00019178,2]
[315409872,1709016640471,-500.0,0.00019178,2]
[315409873,1709016640481,-500.65277545,0.00019178,2]
[315409874,1709016640490,-227.67643892,0.00019178,2]
[315409875,1709016640499,-283.63069126,0.00019178,2]
[315409876,1709016640508,-500.0,0.00019178,2]
[315409877,1709016640518,-500.80767734,0.00019178,2]
[315409878,1709016640527,-500.0,0.00019178,2]
[315409879,1709016640536,-500.0,0.00019178,2]
[315409880,1709016640546,-494.64072621,0.00019178,2]
[315409881,1709016640555,-573.44249112,0.00019178,2]
[315409882,1709016640565,-500.0,0.00019178,2]
[315409883,1709016640575,-500.0,0.00019178,2]
[315409884,1709016640585,-680.18,0.00019178,2]
[315409885,1709016640594,-500.0,0.00019178,2]
[315409886,1709016640603,-502.22775455,0.00019178,2]
[315409887,1709016640613,-758.63,0.00019178,2]
[315409888,1709016640622,-500.0,0.00019178,2]
[315409889,1709016640631,-211.14111785,0.00019178,2]
[315409890,1709016640640,-523.56834789,0.00019178,2]
[315409891,1709016640651,-500.0,0.00019178,2]
[315409892,1709016640660,-501.62472493,0.00019178,2]
[315409893,1709016640670,-502.13809935,0.00019178,2]
[315409894,1709016640679,-500.0,0.00019178,2]
[315409895,1709016640688,-583.2051723,0.00019178,2]
[315409896,1709016640697,-500.0,0.00019178,2]
[315409897,1709016640707,-500.0,0.00019178,2]
[315409898,1709016640717,-500.0,0.00019178,2]
[315409899,1709016640727,-500.0,0.00019178,2]
[315409901,1709016640736,-500.0,0.00019178,2]
[315409903,1709016640746,-500.0,0.00019178,2]
[315409905,1709016640756,-500.0,0.00019178,2]
[315409906,1709016640765,-500.0,0.00019178,2]
[315409907,1709016640775,-501.36407866,0.00019178,2]
[315409908,1709016640784,-502.99389628,0.00019178,2]
[315409909,1709016640793,-401.70891154,0.00019178,2]
[315409910,1709016640803,-500.0,0.00019178,2]
[315409911,1709016640813,-500.0,0.00019178,2]
[315409912,1709016640823,-501.98121851,0.00019178,2]
[315409913,1709016640833,-500.0,0.00019178,2]
[315409914,1709016640843,-1286.73,0.00019178,2]
[315409915,1709016640853,-500.0,0.00019178,2]
[315409916,1709016640863,-162.83762222,0.00019178,2]
[315409917,1709016640873,-500.0,0.00019178,2]
[315409918,1709016640883,-500.0,0.00019178,2]
[315409919,1709016640892,-500.0,0.00019178,2]
[315409920,1709016640902,-502.85792086,0.00019178,2]
[315409921,1709016640911,-1617.68,0.00019178,2]
[315409922,1709016640921,-500.0,0.00019178,2]
[315409923,1709016640930,-500.0,0.00019178,2]
[315409925,1709016640940,-1720.43,0.00019178,2]
[315409927,1709016640949,-500.0,0.00019178,2]
[315409928,1709016640960,-632.27431855,0.00019178,2]
[315409929,1709016640969,-500.0,0.00019178,2]
[315409930,1709016640979,-500.0,0.00019178,2]
[315409931,1709016640988,-500.0,0.00019178,2]
[315409932,1709016640998,-500.0,0.00019178,2]
[315409933,1709016641010,-500.0,0.00019178,2]
[315409934,1709016641019,-1416.7,0.00019178,2]
[315409935,1709016641029,-500.0,0.00019178,2]
[315409936,1709016641038,-500.0,0.00019178,2]
[315409937,1709016641047,-500.0,0.00019178,2]
[315409938,1709016641056,-500.0,0.00019178,2]
[315409939,1709016641066,-500.0,0.00019178,2]
[315409940,1709016641076,-500.86552404,0.00019178,2]
[315409941,1709016641086,-500.0,0.00019178,2]
[315409942,1709016641097,-500.0,0.00019178,2]
[315409943,1709016641106,-451.77238634,0.00019178,2]
[315409944,1709016641116,-500.0,0.00019178,2]
[315409945,1709016641126,-500.0,0.00019178,2]
[315409946,1709016641135,-500.0,0.00019178,2]
[315409947,1709016641144,-500.0,0.00019178,2]
[315409948,1709016641153,-501.83788764,0.00019178,2]
[315409949,1709016641163,-501.95643743,0.00019178,2]
[315409950,1709016641172,-500.90735407,0.00019178,2]
[315409951,1709016641181,-500.0,0.00019178,2]
[315409952,1709016641190,-500.0,0.00019178,2]
[315409953,1709016641199,-1352.03,0.00019178,2]
[315409954,1709016641210,-501.19562815,0.00019178,2]
[315409955,1709016641220,-500.0,0.00019178,2]
[315409956,1709016641229,-866.99,0.00019178,2]
[315409957,1709016641239,-500.0,0.00019178,2]
[315409958,1709016641249,-500.0,0.00019178,2]
[315409959,1709016641258,-500.0,0.00019178,2]
[315409960,1709016641267,-619.98,0.00019178,2]
[315409961,1709016641277,-500.0,0.00019178,2]
[315409962,1709016641286,-500.0,0.00019178,2]
[315409963,1709016641295,-501.378692,0.00019178,2]
[315409964,1709016641304,-500.0,0.00019178,2]
[315409965,1709016641314,-500.0,0.00019178,2]
[315409966,1709016641323,-500.0,0.00019178,2]
[315409967,1709016641332,-503.26423189,0.00019178,2]
[315409968,1709016641341,-500.0,0.00019178,2]
[315409969,1709016641351,-500.0,0.00019178,2]
[315409970,1709016641362,-500.18571217,0.00019178,2]
[315409971,1709016641373,-500.20544472,0.00019178,2]
[315409972,1709016641383,-503.49687487,0.00019178,2]
[315409973,1709016641394,-500.0,0.00019178,2]
[315409974,1709016641405,-500.0,0.00019178,2]
[315409975,1709016641415,-500.0,0.00019178,2]
[315409976,1709016641425,-500.0,0.00019178,2]
[315409977,1709016641436,-500.0,0.00019178,2]
[315409978,1709016641446,-500.0,0.00019178,2]
[315409979,1709016641456,-502.97392599,0.00019178,2]
[315409980,1709016641465,-476.05935812,0.00019178,2]
[315409981,1709016641475,-718.16,0.00019178,2]
[315409982,1709016641485,-500.0,0.00019178,2]
[315409983,1709016641495,-500.0,0.00019178,2]
[315409984,1709016641504,-3499.25,0.00019178,2]
[315409985,1709016641516,-500.67580525,0.00019178,2]
[315409986,1709016641526,-535.51,0.00019178,2]
[315409987,1709016641535,-268.55333724,0.00019178,2]
[315409988,1709016641545,-237.22654352,0.00019178,2]
[315409989,1709016641555,-500.0,0.00019178,2]
[315409990,1709016641564,-500.0,0.00019178,2]
[315409991,1709016641573,-500.0,0.00019178,2]
[315409992,1709016641583,-500.96626582,0.00019178,2]
[315409993,1709016641592,-500.0,0.00019178,2]
[315409994,1709016641602,-783.31,0.00019178,2]
[315409995,1709016641611,-500.0,0.00019178,2]
[315409996,1709016641621,-2475.69,0.00019178,2]
[315409997,1709016641630,-2577.01,0.00019178,2]
[315409998,1709016641639,-2626.11,0.00019178,2]
[315409999,1709016641649,-1424.35,0.00019178,2]
[315410000,1709016641659,-500.0,0.00019178,2]
[315410001,1709016641668,-544.99348939,0.00019178,2]
[315410002,1709016641677,-500.0,0.00019178,2]
[315410003,1709016641688,-443.10422866,0.00019178,2]
[315410004,1709016641698,-503.20835864,0.00019178,2]
[315410005,1709016641707,-500.0,0.00019178,2]
[315410006,1709016641716,-500.0,0.00019178,2]
[315410007,1709016641726,-500.57076762,0.00019178,2]
[315410008,1709016641735,-500.0,0.00019178,2]
[315410009,1709016641744,-1000.0,0.00019178,2]
[315410010,1709016641755,-500.0,0.00019178,2]
[315410012,1709016641764,-491.01392198,0.00019178,2]
[315410014,1709016641774,-500.0,0.00019178,2]
[315410016,1709016641784,-818.42,0.00019178,2]
[315410018,1709016641794,-500.0,0.00019178,2]
[315410020,1709016641804,-500.0,0.00019178,2]
[315410022,1709016641814,-626.77,0.00019178,2]
[315410024,1709016641824,-2035.13,0.00019178,2]
[315410026,1709016641833,-503.28,0.00019178,2]
[315410027,1709016641842,-500.0,0.00019178,2]
[315410029,1709016641851,-500.0,0.00019178,2]
[315410031,1709016641860,-500.0,0.00019178,2]
[315410032,1709016641870,-549.59387891,0.00019178,2]
[315410033,1709016641879,-504.40324197,0.00019178,2]
[315410034,1709016641888,-500.0,0.00019178,2]
[315410035,1709016641998,-18266.78,0.00019178,2]
[315410036,1709016642009,-500.0,0.00019178,2]
[315410037,1709016642021,-523.29,0.00019178,2]
[315410038,1709016642031,-500.0,0.00019178,2]
[315410039,1709016642040,-479.74109791,0.00019178,2]
[315410040,1709016642049,-500.0,0.00019178,2]
[315410041,1709016642061,-500.91730771,0.00019178,2]
[315410042,1709016642070,-500.0,0.00019178,2]
[315410043,1709016642081,-500.0,0.00019178,2]
[315410044,1709016642092,-500.0,0.00019178,2]
[315410045,1709016642103,-1958.59,0.00019178,2]
[315410046,1709016642112,-500.0,0.00019178,2]
[315410047,1709016642121,-500.0,0.00019178,2]
[315410048,1709016642130,-500.0,0.00019178,2]
[315410049,1709016642140,-500.0,0.00019178,2]
[315410050,1709016642149,-262.021544,0.00019178,2]
[315410051,1709016642158,-1307.58,0.00019178,2]
[315410052,1709016642167,-500.82103858,0.00019178,2]
[315410053,1709016642177,-500.0,0.00019178,2]
[315410054,1709016642187,-856.49,0.00019178,2]
[315410055,1709016642196,-856.49,0.00019178,2]
[315410056,1709016642206,-856.49,0.00019178,2]
[315410057,1709016642215,-6918.5,0.00019178,2]
[315410058,1709016642224,-500.0,0.00019178,2]
[315410059,1709016642233,-573.05,0.00019178,2]
[315410060,1709016642242,-1790.85,0.00019178,2]
[315410061,1709016642251,-3580.31,0.00019178,2]
[315410062,1709016642260,-500.0,0.00019178,2]
[315410063,1709016642269,-500.0,0.00019178,2]
[315410064,1709016642279,-500.0,0.00019178,2]
[315410065,1709016642288,-510.03816746,0.00019178,2]
[315410066,1709016642297,-500.0,0.00019178,2]
[315410067,1709016642306,-500.0,0.00019178,2]
[315410068,1709016642315,-2987.98,0.00019178,2]
[315410069,1709016642325,-500.0,0.00019178,2]
[315410070,1709016642333,-3309.45,0.00019178,2]
[315410071,1709016642342,-17763.0,0.00019178,2]
[315410072,1709016642351,-501.01152787,0.00019178,2]
[315410073,1709016642361,-860.53,0.00019178,2]
[315410074,1709016642370,-500.0,0.00019178,2]
[315410075,1709016642380,-1374.14,0.00019178,2]
[315410076,1709016642389,-500.0,0.00019178,2]
[315410077,1709016642398,-500.0,0.00019178,2]
[315410078,1709016642408,-500.0,0.00019178,2]
[315410079,1709016642417,-500.0,0.00019178,2]
[315410080,1709016642427,-500.0,0.00019178,2]
[315410081,1709016642436,-171.31810075,0.00019178,2]
[315410082,1709016642445,-1337.98,0.00019178,2]
[315410083,1709016642454,-500.0,0.00019178,2]
[315410084,1709016642463,-500.0,0.00019178,2]
[315410085,1709016642472,-500.0,0.00019178,2]
[315410086,1709016642481,-285.05808848,0.00019178,2]
[315410087,1709016642490,-2225.5,0.00019178,2]
[315410088,1709016642499,-501.22080587,0.00019178,2]
[315410089,1709016642508,-863.05,0.00019178,2]
[315410090,1709016642517,-500.0,0.00019178,2]
[315410091,1709016642526,-500.0,0.00019178,2]
[315410092,1709016642535,-505.06033528,0.00019178,2]
[315410093,1709016642544,-500.0,0.00019178,2]
[315410094,1709016642553,-500.0,0.00019178,2]
[315410095,1709016642562,-500.64514974,0.00019178,2]
[315410096,1709016642572,-500.0,0.00019178,2]
[315410097,1709016642582,-501.00933044,0.00019178,2]
[315410098,1709016642592,-500.0,0.00019178,2]
[315410099,1709016642603,-660.52,0.00019178,2]
[315410100,1709016642613,-500.0,0.00019178,2]
[315410101,1709016642623,-500.0,0.00019178,2]
[315410102,1709016642632,-500.0,0.00019178,2]
[315410103,1709016642641,-8975.46,0.00019178,2]
[315410104,1709016642651,-292.53384056,0.00019178,2]
[315410105,1709016642660,-694.82180753,0.00019178,2]
[315410106,1709016642669,-166.560288,0.00019178,2]
[315410107,1709016642678,-166.962738,0.00019178,2]
[315410108,1709016642688,-166.666666,0.00019178,2]
[315410109,1709016642697,-500.0,0.00019232,2]
[315410110,1709016642714,-306.0,0.0001926,2]
[315410111,1709016642723,-387.8836946,0.0001926,2]
[315410112,1709016642732,-500.0,0.00019287,2]
[315410113,1709016642742,-418.8771798,0.000193,2]
[315410114,1709016642752,-500.0,0.00019342,2]
[315410115,1709016642761,-1317.34154788,0.00019352,2]
[315410116,1709016642770,-153.30156,0.0001937,2]
[315410117,1709016642779,-153.0,0.0001937,2]
[315410118,1709016642788,-153.0,0.0001937,2]
[315410119,1709016642798,-295.2105092,0.0001937,2]
[315410120,1709016642807,-153.0,0.0001937,2]
[315410121,1709016642817,-306.0,0.0001937,2]
[315410122,1709016642826,-500.0,0.00019396,2]
[315410123,1709016642836,-153.0,0.000194,2]
[315410124,1709016642846,-856.49,0.0001945,2]
[315410125,1709016642856,-500.0,0.00019451,2]
[315410126,1709016642865,-500.0,0.00019451,2]
[315410127,1709016642875,-500.0,0.00019451,2]
[315410128,1709016642885,-500.0,0.00019451,2]
[315410129,1709016642894,-500.0,0.00019451,2]
[315410130,1709016642903,-500.0,0.00019451,2]
[315410131,1709016642912,-1519.40144155,0.00019451,2]
[315410132,1709016642922,-500.0,0.00019451,2]
[315410133,1709016642932,-856.49,0.00019451,2]
[315410134,1709016642941,-856.49,0.00019451,2]
[315410135,1709016642950,-509.88522936,0.00019452,2]
[315410136,1709016642958,-500.0,0.00019452,2]
[315410137,1709016642967,-755.81,0.00019452,2]
[315410138,1709016642977,-1276.81,0.00019452,2]
[315410139,1709016642986,-500.84804991,0.00019452,2]
[315410140,1709016642996,-500.0,0.00019452,2]
[315410141,1709016643008,-500.0,0.00019452,2]
[315410142,1709016643019,-506.51167982,0.00019452,2]
[315410143,1709016643030,-500.0,0.00019452,2]
[315410144,1709016643039,-500.0,0.00019452,2]
[315410145,1709016643048,-500.0,0.00019452,2]
[315410146,1709016643059,-500.0,0.00019452,2]
[315410147,1709016643068,-523.18221423,0.00019452,2]
[315410148,1709016643078,-500.0,0.00019452,2]
[315410150,1709016643088,-680.18,0.00019452,2]
[315410151,1709016643099,-500.0,0.00019452,2]
[315410152,1709016643109,-758.63,0.00019452,2]
[315410153,1709016643120,-500.0,0.00019452,2]
[315410154,1709016643129,-500.0,0.00019452,2]
[315410155,1709016643139,-294.53909541,0.00019452,2]
[315410157,1709016643148,-500.0,0.00019452,2]
[315410158,1709016643157,-500.0,0.00019452,2]
[315410159,1709016643167,-500.0,0.00019452,2]
[315410160,1709016643176,-500.0,0.00019452,2]
[315410161,1709016643185,-500.0,0.00019452,2]
[315410162,1709016643194,-500.0,0.00019452,2]
[315410163,1709016643203,-1286.73,0.00019452,2]
[315410164,1709016643212,-500.0,0.00019452,2]
[315410165,1709016643221,-500.0,0.00019452,2]
[315410166,1709016643230,-501.97109407,0.00019452,2]
[315410167,1709016643239,-212.44196053,0.00019452,2]
[315410168,1709016643248,-1617.68,0.00019452,2]
[315410170,1709016643257,-500.0,0.00019452,2]
[315410171,1709016643266,-1720.43,0.00019452,2]
[315410173,1709016643276,-500.0,0.00019452,2]
[315410175,1709016643285,-1416.7,0.00019452,2]
[315410177,1709016643294,-500.0,0.00019452,2]
[315410179,1709016643303,-235.52195681,0.00019452,2]
[315410181,1709016643313,-501.70867165,0.00019452,2]
[315410183,1709016643323,-500.0,0.00019452,2]
[315410186,1709016643333,-602.67375131,0.00019452,2]
[315410189,1709016643342,-502.83624818,0.00019452,2]
[315410193,1709016643351,-500.0,0.00019452,2]
[315410196,1709016643361,-500.99882083,0.00019452,2]
[315410199,1709016643371,-369.62759187,0.00019452,2]
[315410201,1709016643380,-395.16181797,0.00019452,2]
[315410203,1709016643389,-500.0,0.00019452,2]
[315410206,1709016643398,-1352.03,0.00019452,2]
[315410209,1709016643407,-500.0,0.00019452,2]
[315410211,1709016643417,-866.99,0.00019452,2]
[315410214,1709016643426,-500.0,0.00019452,2]
[315410216,1709016643434,-619.98,0.00019452,2]
[315410218,1709016643444,-317.207108,0.00019452,2]
[315410220,1709016643453,-500.0,0.00019452,2]
[315410222,1709016643463,-500.0,0.00019452,2]
[315410224,1709016643472,-500.0,0.00019452,2]
[315410226,1709016643483,-503.73065665,0.00019452,2]
[315410228,1709016643492,-500.0,0.00019452,2]
[315410230,1709016643502,-500.0,0.00019452,2]
[315410231,1709016643511,-500.0,0.00019452,2]
[315410232,1709016643521,-500.0,0.00019452,2]
[315410234,1709016643531,-500.0,0.00019452,2]
[315410236,1709016643540,-500.0,0.00019452,2]
[315410237,1709016643549,-718.16,0.00019452,2]
[315410238,1709016643558,-551.28665408,0.00019452,2]
[315410239,1709016643567,-501.29042956,0.00019452,2]
[315410240,1709016643578,-3499.25,0.00019452,2]
[315410241,1709016643587,-535.51,0.00019452,2]
[315410243,1709016643596,-502.32182453,0.00019452,2]
[315410244,1709016643605,-500.0,0.00019452,2]
[315410245,1709016643614,-500.0,0.00019452,2]
[315410246,1709016643624,-320.86018493,0.00019452,2]
[315410247,1709016643633,-783.31,0.00019452,2]
[315410248,1709016643642,-581.55260075,0.00019452,2]
[315410249,1709016643652,-2475.69,0.00019452,2]
[315410250,1709016643662,-2577.01,0.00019452,2]
[315410251,1709016643671,-2626.11,0.00019452,2]
[315410252,1709016643681,-1424.35,0.00019452,2]
[315410253,1709016643690,-500.0,0.00019452,2]
[315410254,1709016643699,-255.55957885,0.00019452,2]
[315410255,1709016643708,-500.0,0.00019452,2]
[315410256,1709016643717,-1002.42085392,0.00019452,2]
[315410257,1709016643726,-500.0,0.00019452,2]
[315410258,1709016643736,-500.0,0.00019452,2]
[315410259,1709016643746,-818.42,0.00019452,2]
[315410260,1709016643755,-500.0,0.00019452,2]
[315410261,1709016643764,-226.05511992,0.00019452,2]
[315410263,1709016643773,-626.77,0.00019452,2]
[315410265,1709016643782,-2035.13,0.00019452,2]
[315410266,1709016643791,-503.28,0.00019452,2]
[315410267,1709016643801,-500.0,0.00019452,2]
[315410268,1709016643810,-369.76023936,0.00019452,2]
[315410269,1709016643820,-500.0,0.00019452,2]
[315410270,1709016643830,-500.0,0.00019452,2]
[315410271,1709016643839,-18266.78,0.00019452,2]
[315410272,1709016643848,-500.0,0.00019452,2]
[315410273,1709016643857,-523.29,0.00019452,2]
[315410274,1709016643867,-500.0,0.00019452,2]
[315410275,1709016643876,-500.0,0.00019452,2]
[315410276,1709016643885,-500.0,0.00019452,2]
[315410277,1709016643894,-500.0,0.00019452,2]
[315410278,1709016643903,-1958.59,0.00019452,2]
[315410279,1709016643912,-500.0,0.00019452,2]
[315410281,1709016643921,-500.0,0.00019452,2]
[315410282,1709016643930,-500.0,0.00019452,2]
[315410283,1709016643939,-1307.58,0.00019452,2]
[315410284,1709016643948,-500.0,0.00019452,2]
[315410285,1709016643957,-6918.5,0.00019452,2]
[315410286,1709016643966,-573.05,0.00019452,2]
[315410287,1709016643975,-1790.85,0.00019452,2]
[315410288,1709016643984,-3580.31,0.00019452,2]
[315410289,1709016643994,-501.34358401,0.00019452,2]
[315410290,1709016644003,-502.24533247,0.00019452,2]
[315410291,1709016644013,-410.10016763,0.00019452,2]
[315410292,1709016644023,-2987.98,0.00019452,2]
[315410293,1709016644032,-3309.45,0.00019452,2]
[315410294,1709016644041,-17763.0,0.00019452,2]
[315410295,1709016644050,-860.53,0.00019452,2]
[315410296,1709016644061,-500.0,0.00019452,2]
[315410297,1709016644070,-1374.14,0.00019452,2]
[315410298,1709016644079,-500.0,0.00019452,2]
[315410299,1709016644089,-500.0,0.00019452,2]
[315410300,1709016644098,-504.14013285,0.00019452,2]
[315410301,1709016644108,-1337.98,0.00019452,2]
[315410302,1709016644117,-500.0,0.00019452,2]
[315410303,1709016644126,-2225.5,0.00019452,2]
[315410304,1709016644135,-863.05,0.00019452,2]
[315410305,1709016644144,-501.59373111,0.00019452,2]
[315410306,1709016644153,-500.0,0.00019452,2]
[315410307,1709016644162,-500.0,0.00019452,2]
[315410308,1709016644172,-282.6196593,0.00019452,2]
[315410309,1709016644181,-302.1536889,0.00019452,2]
[315410310,1709016644191,-660.52,0.00019452,2]
[315410311,1709016644202,-500.0,0.00019452,2]
[315410312,1709016644212,-8975.46,0.00019452,2]
[315410313,1709016644221,-1317.34154787,0.00019489,2]
[315410314,1709016644231,-500.0,0.00019506,2]
[315410315,1709016644243,-186.79569354,0.00019561,2]
[315410316,1709016644251,-1317.34154787,0.00019626,2]
[315410317,1709016644261,-166.666666,0.00019627,2]
[315410318,1709016644271,-856.49,0.00019725,2]
[315410319,1709016644280,-856.49,0.00019725,2]
[315410320,1709016644290,-856.49,0.00019725,2]
[315410321,1709016644299,-500.0,0.00019726,2]
[315410322,1709016644309,-755.81,0.00019726,2]
[315410323,1709016644319,-1276.81,0.00019726,2]
[315410324,1709016644329,-500.0,0.00019726,2]
[315410325,1709016644340,-500.0,0.00019726,2]
[315410326,1709016644349,-500.0,0.00019726,2]
[315410327,1709016644360,-401.01611644,0.00019726,2]
[315410328,1709016644371,-500.0,0.00019726,2]
[315410329,1709016644381,-500.0,0.00019726,2]
[315410330,1709016644393,-500.0,0.00019726,2]
[315410331,1709016644402,-680.18,0.00019726,2]
[315410332,1709016644412,-500.0,0.00019726,2]
[315410333,1709016644423,-758.63,0.00019726,2]
[315410334,1709016644432,-500.0,0.00019726,2]
[315410335,1709016644443,-311.25723657,0.00019726,2]
[315410336,1709016644453,-500.0,0.00019726,2]
[315410337,1709016644462,-500.0,0.00019726,2]
[315410338,1709016644471,-500.0,0.00019726,2]
[315410339,1709016644480,-290.43863408,0.00019726,2]
[315410340,1709016644489,-500.0,0.00019726,2]
[315410341,1709016644498,-500.0,0.00019726,2]
[315410342,1709016644593,-1286.73,0.00019726,2]
[315410343,1709016644603,-500.0,0.00019726,2]
[315410344,1709016644613,-500.0,0.00019726,2]
[315410345,1709016644622,-1617.68,0.00019726,2]
[315410346,1709016644633,-500.0,0.00019726,2]
[315410347,1709016644643,-1720.43,0.00019726,2]
[315410348,1709016644652,-500.0,0.00019726,2]
[315410349,1709016644661,-1416.7,0.00019726,2]
[315410350,1709016644670,-500.0,0.00019726,2]
[315410351,1709016644680,-500.0,0.00019726,2]
[315410352,1709016644689,-500.0,0.00019726,2]
[315410353,1709016644698,-502.56998248,0.00019726,2]
[315410354,1709016644707,-1352.03,0.00019726,2]
[315410355,1709016644716,-315.7665185,0.00019726,2]
[315410356,1709016644725,-866.99,0.00019726,2]
[315410357,1709016644735,-552.56513057,0.00019726,2]
[315410358,1709016644743,-619.98,0.00019726,2]
[315410359,1709016644753,-500.0,0.00019726,2]
[315410360,1709016644762,-500.0,0.00019726,2]
[315410361,1709016644771,-500.0,0.00019726,2]
[315410362,1709016644780,-500.0,0.00019726,2]
[315410363,1709016644789,-398.21029264,0.00019726,2]
[315410364,1709016644800,-183.13816209,0.00019726,2]
[315410365,1709016644810,-500.0,0.00019726,2]
[315410366,1709016644819,-500.0,0.00019726,2]
[315410367,1709016644829,-500.0,0.00019726,2]
[315410368,1709016644838,-718.16,0.00019726,2]
[315410369,1709016644847,-3499.25,0.00019726,2]
[315410370,1709016644857,-535.51,0.00019726,2]
[315410371,1709016644868,-500.0,0.00019726,2]
[315410372,1709016644878,-500.0,0.00019726,2]
[315410373,1709016644887,-783.31,0.00019726,2]
[315410374,1709016644896,-2475.69,0.00019726,2]
[315410375,1709016644905,-2577.01,0.00019726,2]
[315410376,1709016644915,-2626.11,0.00019726,2]
[315410377,1709016644924,-1424.35,0.00019726,2]
[315410378,1709016644933,-500.0,0.00019726,2]
[315410379,1709016644942,-507.42166358,0.00019726,2]
[315410380,1709016644951,-500.0,0.00019726,2]
[315410381,1709016644961,-500.0,0.00019726,2]
[315410382,1709016644970,-818.42,0.00019726,2]
[315410383,1709016644978,-500.0,0.00019726,2]
[315410384,1709016644987,-626.77,0.00019726,2]
[315410385,1709016644996,-2035.13,0.00019726,2]
[315410386,1709016645006,-503.28,0.00019726,2]
[315410387,1709016645019,-500.0,0.00019726,2]
[315410388,1709016645028,-500.0,0.00019726,2]
[315410389,1709016645037,-500.0,0.00019726,2]
[315410390,1709016645046,-18266.78,0.00019726,2]
[315410391,1709016645055,-500.0,0.00019726,2]
[315410392,1709016645065,-523.29,0.00019726,2]
[315410393,1709016645075,-500.0,0.00019726,2]
[315410394,1709016645084,-158.76788744,0.00019726,2]
[315410395,1709016645094,-500.0,0.00019726,2]
[315410396,1709016645104,-587.72307026,0.00019726,2]
[315410397,1709016645113,-1958.59,0.00019726,2]
[315410398,1709016645123,-500.0,0.00019726,2]
[315410399,1709016645132,-500.0,0.00019726,2]
[315410400,1709016645141,-500.0,0.00019726,2]
[315410401,1709016645150,-1307.58,0.00019726,2]
[315410402,1709016645160,-500.0,0.00019726,2]
[315410403,1709016645169,-6918.5,0.00019726,2]
[315410404,1709016645178,-573.05,0.00019726,2]
[315410405,1709016645187,-1790.85,0.00019726,2]
[315410406,1709016645197,-3580.31,0.00019726,2]
[315410407,1709016645209,-2987.98,0.00019726,2]
[315410408,1709016645220,-3309.45,0.00019726,2]
[315410409,1709016645231,-17763.0,0.00019726,2]
[315410410,1709016645242,-860.53,0.00019726,2]
[315410411,1709016645253,-500.0,0.00019726,2]
[315410412,1709016645263,-1374.14,0.00019726,2]
[315410413,1709016645273,-500.0,0.00019726,2]
[315410414,1709016645282,-500.0,0.00019726,2]
[315410415,1709016645291,-1337.98,0.00019726,2]
[315410416,1709016645301,-500.0,0.00019726,2]
[315410417,1709016645312,-2225.5,0.00019726,2]